fUSD/lending_fUSD_20250108
["ID","MTS","AMOUNT","RATE_DAILY","PERIOD"]
[348129824,1736346644115,-500.0,9.995e-05,2]
[348129825,1736346644124,-728.28,9.995e-05,2]
[348129826,1736346644133,-500.0,9.995e-05,2]
[348129827,1736346644142,-601.4,9.995e-05,2]
[348129828,1736346644151,-1144.72,9.995e-05,2]
[348129829,1736346644160,-646.58,9.995e-05,2]
[348129830,1736346644169,-500.0,9.995e-05,2]
[348129831,1736346644179,-500.0,9.995e-05,2]
[348129832,1736346644188,-500.0,9.995e-05,2]
[348129833,1736346644197,-554.37,9.995e-05,2]
[348129834,1736346644206,-500.0,9.995e-05,2]
[348129835,1736346644216,-500.0,9.995e-05,2]
[348129836,1736346644225,-764.71,9.995e-05,2]
[348129837,1736346644234,-500.0,9.995e-05,2]
[348129838,1736346644244,-528.46,9.995e-05,2]
[348129839,1736346644253,-500.0,9.995e-05,2]
[348129840,1736346644262,-500.0,9.995e-05,2]
[348129841,1736346644273,-1452.61,9.995e-05,2]
[348129842,1736346644282,-500.0,9.995e-05,2]
[348129843,1736346644291,-756.62,9.995e-05,2]
[348129844,1736346644301,-575.98,9.995e-05,2]
[348129845,1736346644310,-1796.2,9.995e-05,2]
[348129846,1736346644320,-2097.46,9.995e-05,2]
[348129847,1736346644329,-5236.51,9.995e-05,2]
[348129848,1736346644339,-500.0,9.995e-05,2]
[348129849,1736346644348,-1703.27,9.995e-05,2]
[348129850,1736346644357,-551.6,9.995e-05,2]
[348129851,1736346644367,-500.0,9.995e-05,2]
[348129852,1736346644376,-500.0,9.995e-05,2]
[348129853,1736346644386,-1374.62,9.995e-05,2]
[348129854,1736346644396,-885.27,9.995e-05,2]
[348129855,1736346644405,-500.0,9.995e-05,2]
[348129856,1736346644415,-500.0,9.995e-05,2]
[348129857,1736346644424,-1356.51,9.995e-05,2]
[348129858,1736346644434,-3723.2,9.995e-05,2]
[348129859,1736346644443,-500.0,9.995e-05,2]
[348129860,1736346644452,-1813.1,9.995e-05,2]
[348129861,1736346644462,-500.0,9.995e-05,2]
[348129862,1736346644471,-500.0,9.995e-05,2]
[348129863,1736346644480,-1097.66,9.995e-05,2]
[348129864,1736346644489,-500.0,9.995e-05,2]
[348129865,1736346644499,-2058.58,9.995e-05,2]
[348129866,1736346644509,-500.0,9.995e-05,2]
[348129867,1736346644519,-557.04,9.995e-05,2]
[348129868,1736346644528,-3372.09,9.995e-05,2]
[348129869,1736346644538,-500.0,9.995e-05,2]
[348129870,1736346644547,-1546.91,9.995e-05,2]
[348129871,1736346644556,-705.336524,9.995e-05,2]
[348129872,1736346644565,-2725.15,9.995e-05,2]
[348129873,1736346644576,-1495.2,9.995e-05,2]
[348129874,1736346644586,-500.0,9.995e-05,2]
[348129875,1736346644595,-977.2,9.995e-05,2]
[348129876,1736346644604,-502.7078102,9.995e-05,2]
[348129877,1736346644614,-500.0,9.995e-05,2]
[348129878,1736346644623,-504.44641838,9.995e-05,2]
[348129879,1736346644632,-500.0,9.995e-05,2]
[348129880,1736346644642,-504.84332597,9.995e-05,2]
[348129881,1736346644651,-500.0,9.995e-05,2]
[348129882,1736346644660,-741.34,9.995e-05,2]
[348129883,1736346644669,-718.951754,9.995e-05,2]
[348129884,1736346644679,-369.18608865,9.995e-05,2]
[348129885,1736346644688,-500.0,9.995e-05,2]
[348129886,1736346644698,-3346.26,9.995e-05,2]
[348129887,1736346644707,-2672.18,9.995e-05,2]
[348129888,1736346644717,-704.6,9.995e-05,2]
[348129889,1736346644726,-4218.37,9.995e-05,2]
[348129890,1736346644735,-500.0,9.995e-05,2]
[348129891,1736346644744,-500.0,9.995e-05,2]
[348129892,1736346644753,-500.0,9.995e-05,2]
[348129893,1736346644763,-1730.02,9.995e-05,2]
[348129894,1736346644774,-500.0,9.995e-05,2]
[348129895,1736346644995,-500.0,9.995e-05,2]
[348129896,1736346645005,-500.0,9.995e-05,2]
[348129897,1736346645016,-637.86,9.995e-05,2]
[348129898,1736346645027,-500.0,9.995e-05,2]
[348129899,1736346645036,-500.0,9.995e-05,2]
[348129900,1736346645046,-500.0,9.995e-05,2]
[348129901,1736346645055,-500.0,9.995e-05,2]
[348129902,1736346645064,-1397.6,9.995e-05,2]
[348129903,1736346645074,-243.52,9.995e-05,2]
[348129904,1736346645083,-1669.75,9.995e-05,2]
[348129905,1736346645092,-500.0,9.995e-05,2]
[348129906,1736346645101,-500.0,9.995e-05,2]
[348129907,1736346645112,-500.0,9.995e-05,2]
[348129908,1736346645123,-500.0,9.995e-05,2]
[348129909,1736346645133,-500.0,9.995e-05,2]
[348129910,1736346645143,-526.38,9.995e-05,2]
[348129911,1736346645152,-500.0,9.995e-05,2]
[348129912,1736346645161,-1965.9,9.995e-05,2]
[348129913,1736346645171,-500.0,9.995e-05,2]
[348129914,1736346645180,-500.0,9.995e-05,2]
[348129915,1736346645190,-686.99,9.995e-05,2]
[348129916,1736346645199,-3524.24,9.996e-05,2]
[348129917,1736346645208,-1471.62,9.996e-05,2]
[348129918,1736346645218,-615.53,9.996e-05,2]
[348129919,1736346645228,-500.0,9.996e-05,2]
[348129920,1736346645238,-2137.08,9.996e-05,2]
[348129921,1736346645247,-600.03,9.996e-05,2]
[348129922,1736346645256,-500.0,9.996e-05,2]
[348129923,1736346645267,-500.0,9.996e-05,2]
[348129924,1736346645277,-500.0,9.996e-05,2]
[348129925,1736346645287,-500.0,9.996e-05,2]
[348129926,1736346645296,-500.0,9.996e-05,2]
[348129927,1736346645306,-1320.17,9.996e-05,2]
[348129928,1736346645315,-500.0,9.996e-05,2]
[348129929,1736346645324,-500.0,9.996e-05,2]
[348129930,1736346645334,-500.0,9.996e-05,2]
[348129931,1736346645343,-500.0,9.996e-05,2]
[348129932,1736346645353,-500.0,9.996e-05,2]
[348129933,1736346645362,-495.95,9.996e-05,2]
[348129934,1736346645371,-867.9,9.996e-05,2]
[348129935,1736346645380,-500.0,9.996e-05,2]
[348129936,1736346645390,-500.0,9.996e-05,2]
[348129937,1736346645399,-346.04,9.996e-05,2]
[348129938,1736346645408,-819.45,9.996e-05,2]
[348129939,1736346645417,-500.0,9.996e-05,2]
[348129940,1736346645426,-712.87,9.996e-05,2]
[348129941,1736346645435,-1079.0,9.996e-05,2]
[348129942,1736346645444,-210.9,9.996e-05,2]
[348129943,1736346645454,-500.0,9.996e-05,2]
[348129944,1736346645463,-500.0,9.996e-05,2]
[348129945,1736346645472,-500.0,9.996e-05,2]
[348129946,1736346645481,-500.0,9.996e-05,2]
[348129947,1736346645490,-227.30136701,9.996e-05,2]
[348129948,1736346645501,-500.0,9.996e-05,2]
[348129949,1736346645511,-500.0,9.996e-05,2]
[348129950,1736346645524,-500.0,9.996e-05,2]
[348129951,1736346645533,-804.36,9.996e-05,2]
[348129952,1736346645542,-2706.09,9.996e-05,2]
[348129953,1736346645551,-573.5,9.996e-05,2]
[348129954,1736346645560,-732.54,9.996e-05,2]
[348129955,1736346645569,-500.0,9.996e-05,2]
[348129956,1736346645578,-781.87,9.996e-05,2]
[348129957,1736346645587,-539.39,9.996e-05,2]
[348129958,1736346645597,-500.0,9.996e-05,2]
[348129959,1736346645606,-1399.54,9.996e-05,2]
[348129960,1736346645615,-500.0,9.996e-05,2]
[348129961,1736346645624,-514.15,9.996e-05,2]
[348129962,1736346645634,-500.0,9.996e-05,2]
[348129963,1736346645643,-517.68,9.996e-05,2]
[348129964,1736346645653,-500.0,9.996e-05,2]
[348129965,1736346645663,-500.0,9.996e-05,2]
[348129966,1736346645672,-500.0,9.996e-05,2]
[348129967,1736346645681,-702.85,9.996e-05,2]
[348129968,1736346645690,-542.43,9.996e-05,2]
[348129969,1736346645700,-500.0,9.996e-05,2]
[348129970,1736346645709,-594.34,9.996e-05,2]
[348129971,1736346645718,-500.0,9.996e-05,2]
[348129972,1736346645728,-623.4,9.996e-05,2]
[348129973,1736346645737,-500.0,9.996e-05,2]
[348129974,1736346645747,-643.42,9.996e-05,2]
[348129975,1736346645756,-500.0,9.996e-05,2]
[348129976,1736346645765,-699.47,9.996e-05,2]
[348129977,1736346645776,-500.0,9.996e-05,2]
[348129978,1736346645785,-500.0,9.996e-05,2]
[348129979,1736346645795,-610.99,9.996e-05,2]
[348129980,1736346645804,-500.0,9.996e-05,2]
[348129981,1736346645813,-500.0,9.996e-05,2]
[348129982,1736346645823,-500.0,9.996e-05,2]
[348129983,1736346645831,-1753.55,9.996e-05,2]
[348129984,1736346645841,-884.89,9.996e-05,2]
[348129985,1736346645850,-500.0,9.996e-05,2]
[348129986,1736346645859,-500.0,9.996e-05,2]
[348129987,1736346645868,-617.29,9.996e-05,2]
[348129988,1736346645879,-828.92,9.996e-05,2]
[348129989,1736346645890,-500.0,9.996e-05,2]
[348129990,1736346645899,-792.64,9.996e-05,2]
[348129991,1736346645909,-500.0,9.996e-05,2]
[348129992,1736346645919,-500.0,9.996e-05,2]
[348129993,1736346645928,-782.26,9.996e-05,2]
[348129994,1736346645937,-3731.86,9.996e-05,2]
[348129995,1736346645946,-500.0,9.996e-05,2]
[348129996,1736346645955,-500.0,9.996e-05,2]
[348129997,1736346645964,-674.92,9.996e-05,2]
[348129998,1736346645974,-574.04,9.996e-05,2]
[348129999,1736346645983,-500.0,9.996e-05,2]
[348130000,1736346645992,-500.0,9.996e-05,2]
[348130001,1736346646004,-1233.88,9.996e-05,2]
[348130002,1736346646013,-500.0,9.996e-05,2]
[348130003,1736346646024,-3377.35,9.996e-05,2]
[348130004,1736346646033,-759.17,9.996e-05,2]
[348130005,1736346646042,-500.0,9.996e-05,2]
[348130006,1736346646052,-3110.39,9.996e-05,2]
[348130007,1736346646061,-800.0,9.996e-05,2]
[348130008,1736346646071,-1211.26,9.996e-05,2]
[348130009,1736346646080,-1562.38,9.996e-05,2]
[348130010,1736346646089,-6840.74,9.996e-05,2]
[348130011,1736346646098,-2607.11,9.996e-05,2]
[348130012,1736346646107,-1502.84,9.996e-05,2]
[348130013,1736346646116,-1682.17,9.996e-05,2]
[348130014,1736346646125,-1469.36,9.996e-05,2]
[348130015,1736346646135,-1447.24,9.996e-05,2]
[348130016,1736346646144,-500.0,9.996e-05,2]
[348130017,1736346646153,-500.0,9.997e-05,2]
[348130018,1736346646163,-972.73,9.997e-05,2]
[348130019,1736346646172,-1268.67,9.997e-05,2]
[348130020,1736346646182,-907.84,9.997e-05,2]
[348130021,1736346646191,-1000.0,9.997e-05,2]
[348130022,1736346646200,-775.47,9.997e-05,2]
[348130023,1736346646210,-2077.88,9.997e-05,2]
[348130024,1736346646219,-1815.92,9.997e-05,2]
[348130025,1736346646228,-5860.93329151,9.999e-05,4]
[348130026,1736346646238,-300.0,0.0001,2]
[348130027,1736346646248,-23155.97685335,0.0001,2]
[348130028,1736346646258,-208.69114303,0.0001,2]
[348130029,1736346646269,-1000.0,0.0001,10]
[348130030,1736346646278,-87710.48532018,0.0001,2]
[348130031,1736346646287,-800.0,0.0001,3]
[348130032,1736346646297,-1082.45034171,0.0001,2]
[348130033,1736346646306,-3690.46678086,0.0001,2]
[348130034,1736346646315,-3690.46678072,0.0001,2]
[348130035,1736346646324,-3690.46678072,0.0001,2]
[348130037,1736346646333,-3690.46678072,0.0001,2]
[348130039,1736346646342,-207.93105688,0.0001,2]
[348130040,1736346646351,-150.0,0.00010068,2]
[348130042,1736346646360,-150.0,0.00010103,2]
[348130044,1736346646369,-782.18,0.00010137,2]
[348130047,1736346646379,-255.0,0.00010145,2]
[348130049,1736346646388,-932.51266379,0.00010146,2]
[348130051,1736346646398,-207.93105685,0.00010157,2]
[348130052,1736346646407,-2699.737,0.00010169,2]
[348130054,1736346646416,-208.658,0.00010169,2]
[348130057,1736346646426,-1892.7852,0.0001017,2]
[348130060,1736346646435,-1860.0,0.00010187,2]
[348130063,1736346646445,-916.0,0.00010187,2]
[348130066,1736346646454,-3776.0,0.00010187,2]
[348130069,1736346646464,-819.0,0.00010187,2]
[348130072,1736346646473,-1258.0,0.00010187,2]
[348130074,1736346646482,-537.0,0.00010187,2]
[348130076,1736346646491,-3976.0,0.00010187,2]
[348130078,1736346646501,-3895.0,0.00010187,2]
[348130080,1736346646510,-2015.0,0.00010187,2]
[348130081,1736346646522,-1267.0,0.00010187,2]
[348130082,1736346646533,-636.0,0.00010187,2]
[348130083,1736346646542,-150.0,0.00010187,2]
[348130084,1736346646551,-1173.0,0.00010187,2]
[348130085,1736346646561,-7660.5383,0.000102,2]
[348130086,1736346646570,-205.60199953,0.000102,2]
[348130087,1736346646580,-2914.18013136,0.00010234,3]
[348130088,1736346646590,-298.94464702,0.00010261,2]
[348130089,1736346646599,-500.0,0.00010261,2]
[348130090,1736346646609,-520.22,0.00010261,2]
[348130091,1736346646619,-503.27579467,0.00010261,2]
[348130092,1736346646630,-506.15802987,0.00010269,2]
[348130093,1736346646641,-489.8888998,0.00010269,2]
[348130094,1736346646651,-500.0,0.00010269,2]
[348130095,1736346646662,-290.47946825,0.00010269,2]
[348130096,1736346646671,-500.0,0.00010269,2]
[348130097,1736346646682,-500.0,0.00010269,2]
[348130098,1736346646693,-500.0,0.00010269,2]
[348130099,1736346646704,-500.0,0.00010269,2]
[348130100,1736346646716,-644.72062226,0.00010269,2]
[348130101,1736346646727,-500.0,0.00010269,2]
[348130102,1736346646737,-500.0,0.00010269,2]
[348130103,1736346646748,-500.0,0.00010269,2]
[348130104,1736346646758,-500.0,0.00010269,2]
[348130105,1736346646771,-637.75491881,0.00010269,2]
[348130106,1736346646782,-500.0,0.00010269,2]
[348130107,1736346646793,-577.85,0.00010269,2]
[348130108,1736346646803,-500.0,0.00010269,2]
[348130109,1736346646813,-392.92040733,0.00010269,2]
[348130110,1736346646822,-500.0,0.00010269,2]
[348130111,1736346646833,-500.0,0.00010269,2]
[348130112,1736346646842,-582.01,0.00010269,2]
[348130113,1736346646852,-500.0,0.00010269,2]
[348130114,1736346646862,-351.34397911,0.00010269,2]
[348130115,1736346646872,-500.0,0.00010269,2]
[348130116,1736346646886,-500.0,0.00010269,2]
[348130117,1736346646895,-500.0,0.00010269,2]
[348130118,1736346646905,-500.0,0.00010269,2]
[348130119,1736346646915,-500.0,0.00010269,2]
[348130120,1736346646925,-500.0,0.00010269,2]
[348130121,1736346646935,-500.0,0.00010269,2]
[348130122,1736346646947,-693.65,0.00010269,2]
[348130123,1736346646959,-500.0,0.00010269,2]
[348130124,1736346646970,-1306.01,0.00010269,2]
[348130125,1736346646981,-600.54,0.00010269,2]
[348130126,1736346646992,-500.0,0.00010269,2]
[348130127,1736346647003,-502.8661683,0.00010269,2]
[348130128,1736346647013,-500.0,0.00010269,2]
[348130129,1736346647027,-532.28,0.00010269,2]
[348130130,1736346647037,-500.0,0.00010269,2]
[348130131,1736346647048,-500.0,0.00010269,2]
[348130132,1736346647059,-500.0,0.00010269,2]
[348130133,1736346647070,-340.29,0.00010269,2]
[348130134,1736346647081,-500.0,0.00010269,2]
[348130135,1736346647091,-752.68,0.00010269,2]
[348130136,1736346647102,-500.0,0.00010269,2]
[348130137,1736346647113,-170.5494527,0.00010269,2]
[348130138,1736346647123,-1262.42,0.00010269,2]
[348130139,1736346647133,-500.0,0.00010269,2]
[348130140,1736346647143,-585.61,0.00010269,2]
[348130141,1736346647152,-160.97852053,0.00010269,2]
[348130142,1736346647162,-500.0,0.00010269,2]
[348130143,1736346647172,-501.97277082,0.00010269,2]
[348130144,1736346647181,-500.0,0.00010269,2]
[348130145,1736346647191,-900.04,0.00010269,2]
[348130146,1736346647201,-749.82,0.00010269,2]
[348130147,1736346647211,-500.0,0.00010269,2]
[348130148,1736346647221,-500.0,0.00010269,2]
[348130149,1736346647230,-172.16,0.00010269,2]
[348130150,1736346647240,-500.0,0.00010269,2]
[348130151,1736346647250,-500.0,0.00010269,2]
[348130152,1736346647261,-486.67438575,0.00010269,2]
[348130153,1736346647583,-13.32561425,0.00010269,2]
[348130154,1736346647593,-500.0,0.00010269,2]
[348130155,1736346647603,-500.0,0.00010269,2]
[348130156,1736346647614,-500.0,0.00010269,2]
[348130157,1736346647624,-868.22,0.00010269,2]
[348130158,1736346647637,-500.0,0.00010269,2]
[348130159,1736346647649,-375.0,0.00010269,2]
[348130160,1736346647662,-821.19,0.00010269,2]
[348130161,1736346647673,-570.51,0.00010269,2]
[348130162,1736346647685,-500.0,0.00010269,2]
[348130163,1736346647697,-500.0,0.00010269,2]
[348130164,1736346647707,-500.0,0.00010269,2]
[348130165,1736346647718,-500.0,0.00010269,2]
[348130166,1736346647728,-500.0,0.00010269,2]
[348130167,1736346647739,-500.0,0.00010269,2]
[348130168,1736346647751,-500.0,0.00010269,2]
[348130169,1736346647763,-536.07,0.00010269,2]
[348130170,1736346647776,-3284.46,0.00010269,2]
[348130171,1736346647787,-500.0,0.00010269,2]
[348130172,1736346647798,-728.28,0.00010269,2]
[348130173,1736346647808,-241.7,0.00010269,2]
[348130174,1736346647818,-530.14,0.00010269,2]
[348130175,1736346647828,-500.0,0.00010269,2]
[348130176,1736346647837,-601.4,0.00010269,2]
[348130177,1736346647848,-1144.72,0.00010269,2]
[348130178,1736346647858,-607.22,0.00010269,2]
[348130179,1736346647868,-240.35,0.00010269,2]
[348130180,1736346647882,-500.0,0.00010269,2]
[348130181,1736346647892,-646.58,0.00010269,2]
[348130182,1736346647902,-854.88,0.00010269,2]
[348130183,1736346647912,-500.0,0.00010269,2]
[348130184,1736346647922,-500.0,0.00010269,2]
[348130185,1736346647933,-500.0,0.00010269,2]
[348130186,1736346647943,-554.37,0.00010269,2]
[348130187,1736346647952,-500.0,0.00010269,7]
[348130188,1736346647964,-500.0,0.00010269,2]
[348130189,1736346647976,-500.0,0.00010269,2]
[348130190,1736346647987,-500.0,0.00010269,2]
[348130191,1736346647996,-500.0,0.00010269,2]
[348130192,1736346648005,-500.0,0.00010269,2]
[348130193,1736346648015,-764.71,0.00010269,2]
[348130194,1736346648027,-500.0,0.00010269,2]
[348130195,1736346648036,-500.0,0.00010269,2]
[348130196,1736346648045,-528.46,0.00010269,2]
[348130197,1736346648055,-314.14,0.00010269,2]
[348130198,1736346648065,-500.0,0.00010269,2]
[348130199,1736346648075,-263.29073739,0.00010269,2]
[348130200,1736346648086,-500.0,0.00010269,2]
[348130201,1736346648097,-500.0,0.00010269,2]
[348130202,1736346648108,-1452.61,0.00010269,2]
[348130203,1736346648120,-500.0,0.00010269,2]
[348130204,1736346648130,-500.0,0.00010269,2]
[348130205,1736346648139,-756.62,0.00010269,2]
[348130206,1736346648149,-575.98,0.00010269,2]
[348130207,1736346648159,-1796.2,0.00010269,2]
[348130208,1736346648168,-500.0,0.00010269,2]
[348130209,1736346648179,-2097.46,0.00010269,2]
[348130210,1736346648189,-5236.51,0.00010269,2]
[348130211,1736346648198,-1703.27,0.00010269,2]
[348130212,1736346648208,-500.0,0.00010269,2]
[348130213,1736346648219,-500.0,0.00010269,2]
[348130214,1736346648229,-551.6,0.00010269,2]
[348130215,1736346648239,-500.0,0.00010269,2]
[348130216,1736346648249,-500.0,0.00010269,2]
[348130217,1736346648259,-1374.62,0.00010269,2]
[348130218,1736346648273,-500.0,0.00010269,2]
[348130219,1736346648283,-885.27,0.00010269,2]
[348130220,1736346648294,-500.0,0.00010269,2]
[348130221,1736346648307,-500.0,0.00010269,2]
[348130222,1736346648319,-1356.51,0.00010269,2]
[348130223,1736346648331,-3723.2,0.00010269,2]
[348130224,1736346648343,-500.0,0.00010269,2]
[348130225,1736346648354,-500.0,0.00010269,2]
[348130226,1736346648364,-1813.1,0.00010269,2]
[348130227,1736346648375,-500.0,0.00010269,2]
[348130228,1736346648385,-500.0,0.00010269,2]
[348130229,1736346648397,-1097.66,0.00010269,2]
[348130230,1736346648409,-183.4,0.00010269,2]
[348130231,1736346648421,-2058.58,0.00010269,2]
[348130232,1736346648433,-500.0,0.00010269,2]
[348130233,1736346648445,-557.04,0.00010269,2]
[348130234,1736346648454,-877.54,0.00010269,2]
[348130235,1736346648463,-3372.09,0.00010269,2]
[348130236,1736346648472,-500.0,0.00010269,2]
[348130237,1736346648482,-1546.91,0.00010269,2]
[348130238,1736346648491,-705.336524,0.00010269,2]
[348130239,1736346648500,-2725.15,0.00010269,2]
[348130240,1736346648511,-1495.2,0.00010269,2]
[348130241,1736346648524,-500.0,0.00010269,2]
[348130242,1736346648534,-977.2,0.00010269,2]
[348130243,1736346648545,-500.0,0.00010269,2]
[348130244,1736346648556,-500.0,0.00010269,2]
[348130245,1736346648566,-500.0,0.00010269,2]
[348130246,1736346648576,-500.0,0.00010269,2]
[348130247,1736346648586,-741.34,0.00010269,2]
[348130248,1736346648596,-1616.15,0.00010269,2]
[348130249,1736346648607,-718.951754,0.00010269,2]
[348130250,1736346648617,-500.0,0.00010269,2]
[348130251,1736346648626,-3346.26,0.00010269,2]
[348130252,1736346648637,-2672.18,0.00010269,2]
[348130253,1736346648647,-704.6,0.00010269,2]
[348130254,1736346648656,-4218.37,0.00010269,2]
[348130255,1736346648667,-500.0,0.00010269,2]
[348130256,1736346648677,-628.64,0.00010269,2]
[348130257,1736346648687,-436.0320955,0.00010269,2]
[348130258,1736346648697,-1730.02,0.00010269,2]
[348130259,1736346648707,-1596.85,0.00010269,2]
[348130260,1736346648718,-500.0,0.00010269,2]
[348130261,1736346648729,-500.0,0.00010269,2]
[348130262,1736346648739,-500.0,0.00010269,2]
[348130263,1736346648749,-500.0,0.00010269,2]
[348130264,1736346648760,-500.0,0.00010269,2]
[348130265,1736346648770,-500.0,0.00010269,2]
[348130266,1736346648780,-637.86,0.00010269,2]
[348130267,1736346648790,-500.0,0.00010269,2]
[348130268,1736346648800,-1397.6,0.00010269,2]
[348130269,1736346648810,-1669.75,0.00010269,2]
[348130270,1736346649036,-217.82,0.00010269,2]
[348130271,1736346649046,-500.0,0.00010269,2]
[348130272,1736346649057,-500.0,0.00010269,2]
[348130273,1736346649067,-500.0,0.00010269,2]
[348130274,1736346649077,-500.0,0.00010269,2]
[348130275,1736346649087,-1003.59,0.00010269,2]
[348130276,1736346649097,-500.0,0.00010269,2]
[348130277,1736346649107,-526.38,0.00010269,2]
[348130278,1736346649117,-500.0,0.00010269,2]
[348130279,1736346649127,-1965.9,0.00010269,2]
[348130280,1736346649137,-554.07999677,0.00010269,2]
[348130281,1736346649148,-500.0,0.00010269,2]
[348130282,1736346649158,-686.99,0.00010269,2]
[348130283,1736346649168,-3524.24,0.0001027,2]
[348130284,1736346649177,-1471.62,0.0001027,2]
[348130285,1736346649187,-615.53,0.0001027,2]
[348130286,1736346649197,-500.0,0.0001027,2]
[348130287,1736346649207,-2137.08,0.0001027,2]
[348130288,1736346649217,-600.03,0.0001027,2]
[348130289,1736346649226,-500.0,0.0001027,2]
[348130290,1736346649237,-500.0,0.0001027,2]
[348130291,1736346649247,-500.0,0.0001027,2]
[348130292,1736346649257,-500.0,0.0001027,2]
[348130293,1736346649267,-1320.17,0.0001027,2]
[348130294,1736346649278,-500.0,0.0001027,2]
[348130295,1736346649288,-500.0,0.0001027,2]
[348130296,1736346649298,-500.0,0.0001027,2]
[348130297,1736346649308,-500.0,0.0001027,2]
[348130298,1736346649317,-867.9,0.0001027,2]
[348130299,1736346649328,-500.0,0.0001027,2]
[348130300,1736346649339,-566.51852984,0.0001027,2]
[348130301,1736346649349,-819.45,0.0001027,2]
[348130302,1736346649359,-500.0,0.0001027,2]
[348130303,1736346649368,-712.87,0.0001027,2]
[348130304,1736346649378,-1079.0,0.0001027,2]
[348130305,1736346649388,-212.63,0.0001027,2]
[348130306,1736346649398,-395.47,0.0001027,2]
[348130307,1736346649408,-500.0,0.0001027,2]
[348130308,1736346649418,-500.0,0.0001027,2]
[348130309,1736346649428,-500.0,0.0001027,2]
[348130310,1736346649439,-500.0,0.0001027,2]
[348130311,1736346649449,-500.0,0.0001027,2]
[348130312,1736346649460,-804.36,0.0001027,2]
[348130313,1736346649470,-2706.09,0.0001027,2]
[348130314,1736346649480,-573.5,0.0001027,2]
[348130315,1736346649490,-732.54,0.0001027,2]
[348130316,1736346649501,-500.0,0.0001027,2]
[348130317,1736346649511,-781.87,0.0001027,2]
[348130318,1736346649522,-500.0,0.0001027,2]
[348130319,1736346649532,-1399.54,0.0001027,2]
[348130320,1736346649542,-517.68,0.0001027,2]
[348130321,1736346649553,-500.0,0.0001027,2]
[348130322,1736346649564,-500.0,0.0001027,2]
[348130323,1736346649574,-298.27315318,0.0001027,2]
[348130324,1736346649584,-702.85,0.0001027,2]
[348130325,1736346649593,-542.43,0.0001027,2]
[348130326,1736346649603,-500.0,0.0001027,2]
[348130327,1736346649613,-594.34,0.0001027,2]
[348130328,1736346649622,-500.0,0.0001027,2]
[348130329,1736346649632,-623.4,0.0001027,2]
[348130330,1736346649642,-500.0,0.0001027,2]
[348130331,1736346649651,-643.42,0.0001027,2]
[348130332,1736346649661,-500.0,0.0001027,2]
[348130333,1736346649670,-699.47,0.0001027,2]
[348130334,1736346649681,-500.0,0.0001027,2]
[348130335,1736346649691,-500.0,0.0001027,2]
[348130336,1736346649701,-610.99,0.0001027,2]
[348130337,1736346649712,-500.0,0.0001027,2]
[348130338,1736346649722,-500.0,0.0001027,2]
[348130339,1736346649731,-500.0,0.0001027,2]
[348130340,1736346649740,-1753.55,0.0001027,2]
[348130341,1736346649750,-884.89,0.0001027,2]
[348130342,1736346649759,-500.0,0.0001027,2]
[348130343,1736346649770,-500.0,0.0001027,2]
[348130344,1736346649781,-617.29,0.0001027,2]
[348130345,1736346649791,-500.0,0.0001027,2]
[348130346,1736346649802,-828.92,0.0001027,2]
[348130347,1736346649812,-792.64,0.0001027,2]
[348130348,1736346649821,-500.0,0.0001027,2]